Cogmind - Beta 13 @@@ ROGUE MODE // 2024.07.21 @ 14:24:45 Player: swetpototo Result: Destroyed by H-55 Commando with Assault Rifle Performance ------------- Evolutions (3) 1500 Regions Visited (6) 1200 Robots Destroyed (13) 65 Value Destroyed (378) 378 Prototype IDs (1) 20 Alien Tech Used (0) 0 Bonus (500) 500 TOTAL SCORE: 3663 Bonus ------- Entered DSFs 500 Cogmind --------- Core Integrity 0/700 Matter 300/300 Energy 43/100 System Corruption 2% Temperature Cool (0) Movement Treading (160) Location -7/DSF Parts ------- > --- POWER (1) -------- (None) > --- PROPULSION (4) --- Medium Treads Medium Treads Medium Treads > --- UTILITY (6) ------ Huge Storage Unit Improved Targeting Computer > --- WEAPON (2) ------- (None) > --- INVENTORY (25) --- Large Storage Unit Large Storage Unit Improved Terrain Scanner Terrain Scan Processor Terrain Scan Processor Terrain Scan Processor Terrain Scan Processor Terrain Scan Processor Improved Targeting Computer Improved Targeting Computer Reaction Control System Authchip [Power] Authchip [Propulsion] Authchip [Propulsion] Assault Rifle Grenade Launcher Rocket Launcher Hammer Heavy Hammer Peak State ------------ > --- POWER ------------ (None) > --- PROPULSION ------- Light Treads Improved Treads Improved Treads > --- UTILITY ---------- Huge Storage Unit Large Matter Pod Advanced Weight Redist. System Hardened Heavy Armor Plating System Shield > --- WEAPON ----------- Coil Gun > --- INVENTORY -------- Large Storage Unit Large Storage Unit Improved Terrain Scanner Terrain Scan Processor Terrain Scan Processor Terrain Scan Processor Terrain Scan Processor Terrain Scan Processor Improved Targeting Computer Improved Targeting Computer Improved Targeting Computer Improved Targeting Computer Reaction Control System Assault Rifle Grenade Launcher Rocket Launcher Hammer Heavy Hammer [Rating: 29] Favorites ----------- Power Deuterium Engine Engine Deuterium Engine Propulsion Improved Treads Treads Improved Treads Leg Improved Aluminum Leg Utility Large Matter Pod Device Advanced Weight Redist. System Storage Large Matter Pod Processor Improved Targeting Computer Hackware System Shield Protection Core Shielding Weapon Assault Rifle Energy Gun Small Laser Energy Cannon Ion Cannon Ballistic Gun Assault Rifle Impact Weapon Heavy Hammer Build | -11 -10 -9 -9 -8 -7 -7 ------- Run | Yrd Mat Mat Min Mat Fac DSF Slots Evolved 6 | . . 2 . 2 2 . Power . | . . . . . . . Propulsion 2 | . . 2 . . . . Utility 4 | . . . . 2 2 . Weapon . | . . . . . . . Parts Attached 48 | 6 6 4 . 17 . 15 Power 3 | 1 . 1 . 1 . . Engine 3 | 1 . 1 . 1 . . Core . | . . . . . . . Reactor . | . . . . . . . Propulsion 24 | 2 4 2 . 6 . 10 Treads 16 | . . . . 6 . 10 Leg 8 | 2 4 2 . . . . Wheel . | . . . . . . . Hover . | . . . . . . . Flight . | . . . . . . . Utility 11 | 1 1 1 . 4 . 4 Device 1 | . . . . 1 . . Storage 5 | 1 1 1 . 2 . . Processor 2 | . . . . . . 2 Hackware 1 | . . . . 1 . . Protection 2 | . . . . . . 2 Artifact . | . . . . . . . Weapon 10 | 2 1 . . 6 . 1 Energy Gun 2 | 1 . . . 1 . . Energy Cannon 1 | . . . . 1 . . Ballistic Gun 3 | 1 . . . 1 . 1 Ballistic Cannon . | . . . . . . . Launcher . | . . . . . . . Special Weapon . | . . . . . . . Impact Weapon 4 | . 1 . . 3 . . Slashing Weapon . | . . . . . . . Piercing Weapon . | . . . . . . . Special Melee Weapon . | . . . . . . . Unidentified Prototypes 1 | . . . . 1 . . Parts Lost 22 | . 1 . . 1 . 20 Power 2 | . 1 . . . . 1 Propulsion 11 | . . . . . . 11 Utility 6 | . . . . . . 6 Weapon 3 | . . . . 1 . 2 Highest Loss Streak 20 | . 1 . . 1 . 20 To Critical Strikes . | . . . . . . . Average Slot Usage (%) 85 | . 76 91 100 93 84 71 Engine 7 | . 6 9 11 9 7 3 Treads 23 | . . . . 35 30 24 Leg 8 | . 27 44 44 . . . Device 5 | . . . . 8 7 4 Storage 16 | . 12 15 22 18 15 14 Hackware 3 | . . . . 5 7 4 Energy Gun 2 | . 10 . . . . . Energy Cannon 1 | . . . . 1 7 3 Ballistic Gun 6 | . 14 11 11 4 . 1 Impact Weapon 8 | . 3 11 11 11 7 3 Naked Turns . | . . . . . . . Heaviest Build 108 | 11 11 17 17 101 101 108 Greatest Support 101 | 20 26 52 52 101 95 99 Greatest Overweight (x) 2 | . 1 . . 1 1 2 Average Overweight (x) . | . . . . . 1 . Largest Inventory Capacity 25 | 8 8 8 8 25 25 25 Average Capacity 15 | 7 7 8 8 16 25 25 Most Carried 22 | 2 8 8 8 20 20 22 Average Carried 11 | . 7 6 8 11 20 19 Final Capacity 25 | 8 8 8 8 25 25 25 Final Carried 20 | 2 8 8 8 20 20 19 Class Distribution -------------------- 100% | Mutant Dominant Class ---------------- Mutant | -10/Materials Mutant | -9/Materials Mutant | -9/Mines Mutant | -8/Materials Mutant | -7/Factory Mutant | -7/DSF Resources | -11 -10 -9 -9 -8 -7 -7 ----------- Run | Yrd Mat Mat Min Mat Fac DSF Matter Collected 853 | 197 192 . . 419 . 45 Remotely . | . . . . . . . Salvage Created 630 | . 298 . . 262 . 70 Parts 29 | . 13 . . 10 . 6 Haulers Intercepted 4 | . 1 . . 3 . . Recyclers Shooed . | . . . . . . . Parts Field Recycled . | . . . . . . . Retrieved Matter . | . . . . . . . Parts Self-Destructed . | . . . . . . . Prevented . | . . . . . . . Kills | -11 -10 -9 -9 -8 -7 -7 ------- Run | Yrd Mat Mat Min Mat Fac DSF Combat Hostiles Destroyed 9 | . 6 . . 2 . 1 Melee 1 | . 1 . . . . . Guns 8 | . 5 . . 2 . 1 Classes Destroyed 4 | . 2 . . 1 . 1 Hauler 4 | . 1 . . 3 . . Grunt 7 | . 6 . . 1 . . Sentry 1 | . . . . 1 . . Heavy 1 | . . . . . . 1 Best Kill Streak 3 | . 3 . . 2 . 1 Combat Bots Only 3 | . 3 . . 2 . 1 Max Kills in Single Turn 1 | . 1 . . 1 . 1 Gunslinging . | . . . . . . . Exploded . | . . . . . . . Melee 1 | . 1 . . . . . Uniques/NPCs Destroyed . | . . . . . . . Combat | -11 -10 -9 -9 -8 -7 -7 -------- Run | Yrd Mat Mat Min Mat Fac DSF Hostile Shots Fired 347 | . 48 . . 67 . 232 Missed 64 | . 8 . . 9 . 47 Damage Taken 4652 | . 498 . . 846 . 3308 Core 1035 | . 184 . . 145 . 706 Absorbed by Shields . | . . . . . . . Redirected to Shielding 50 | . . . . . . 50 Core Remaining (%) 74 | 100 26 . 100 73 . . Volleys Fired 52 | . 22 . . 25 . 5 Largest 2 | . 2 . . 1 . 2 Hottest 90 | . 60 . . 60 . 90 Shots Fired 79 | . 44 . . 25 . 10 Gun 73 | . 44 . . 24 . 5 Cannon 6 | . . . . 1 . 5 Launcher . | . . . . . . . Special . | . . . . . . . Kinetic 51 | . 22 . . 24 . 5 Thermal 28 | . 22 . . 1 . 5 Explosive . | . . . . . . . Electromagnetic . | . . . . . . . Robot Hit Streak 18 | . 9 . . 12 . 18 Robot Miss Streak 2 | . 2 . . 1 . 1 Penetration Max . | . . . . . . . Secondary Targets . | . . . . . . . Shots Hit Robots 70 | . 34 . . 28 . 8 Core Hits 23 | . 12 . . 8 . 3 Critical Kills . | . . . . . . . Critical Parts Destroyed 1 | . 1 . . . . . Critical Strikes 1 | . 1 . . . . . Smash 1 | . 1 . . . . . Melee Attacks 33 | . 7 . . 26 . . Impact 33 | . 7 . . 26 . . Slashing . | . . . . . . . Piercing . | . . . . . . . Sneak Attacks 4 | . 1 . . 3 . . Combat Hostiles . | . . . . . . . Follow-up Attacks . | . . . . . . . Damage Inflicted 1246 | . 504 . . 572 . 170 Guns 726 | . 335 . . 288 . 103 Cannons 90 | . . . . 23 . 67 Explosions . | . . . . . . . Melee 430 | . 169 . . 261 . . Ramming . | . . . . . . . Kinetic 547 | . 156 . . 288 . 103 Thermal 269 | . 179 . . 23 . 67 Explosive . | . . . . . . . Electromagnetic . | . . . . . . . Impact 430 | . 169 . . 261 . . Slashing . | . . . . . . . Piercing . | . . . . . . . Highest Corruption 2 | . . . . . . 2 Average Corruption 1 | . . . . . . 1 Corruption Purged . | . . . . . . . Corruption Blocked . | . . . . . . . Overload Shots . | . . . . . . . Overflow Damage 126 | . 73 . . 53 . . Projectiles . | . . . . . . . Explosions . | . . . . . . . Melee 126 | . 73 . . 53 . . Knockbacks 1 | . 1 . . . . . Impact 1 | . 1 . . . . . Kinetic . | . . . . . . . Secondary . | . . . . . . . Self-Inflicted Damage . | . . . . . . . Shots . | . . . . . . . Rammed . | . . . . . . . Targets Rammed . | . . . . . . . Kicked . | . . . . . . . Crushed . | . . . . . . . Highest Temperature 235 | . 96 . . 235 . . Average Temperature 45 | . 43 . . 50 . . Received Heat Transfer 1062 | . 279 . . 468 . 315 Siege Activations . | . . . . . . . Robots Corrupted . | . . . . . . . Combat Hostiles . | . . . . . . . Parts Fried 3 | . 2 . . 1 . . Impact Corruptions 5 | . 2 . . 3 . . Robots Melted . | . . . . . . . Combat Hostiles . | . . . . . . . Parts Melted . | . . . . . . . Heat Transferred 548 | . 400 . . 37 . 111 Parts Sabotaged . | . . . . . . . Parts Stolen . | . . . . . . . Parts Stripped . | . . . . . . . Power Chain Reactions . | . . . . . . . Alert | -11 -10 -9 -9 -8 -7 -7 ------- Run | Yrd Mat Mat Min Mat Fac DSF Peak Influence 182 | . 182 76 29 72 7 35 Initial 76 | . . 76 29 11 7 4 Average 33 | . 82 76 29 23 7 3 Maximum Alert Level . | . . . . . . . Low Security (%) 100 | 100 100 100 100 100 100 100 Level 1 . | . . . . . . . Level 2 . | . . . . . . . Level 3 . | . . . . . . . Level 4 . | . . . . . . . Level 5 . | . . . . . . . High Security . | . . . . . . . Max Security . | . . . . . . . Squads Dispatched 8 | . 2 . . 4 . 2 Investigation 3 | . 1 . . 2 . . Extermination . | . . . . . . . Reinforcement 5 | . 1 . . 2 . 2 Assault . | . . . . . . . Garrison . | . . . . . . . Intercept . | . . . . . . . Searches Triggered . | . . . . . . . Construction Impeded . | . . . . . . . Haulers Reinforced . | . . . . . . . Active Scanning Responses . | . . . . . . . Cargo Convoy Interrupts . | . . . . . . . Stealth | -11 -10 -9 -9 -8 -7 -7 --------- Run | Yrd Mat Mat Min Mat Fac DSF Distress Signals 1 | . . . . 1 . . Communications Jammed . | . . . . . . . Distress Signals . | . . . . . . . Times Spotted 21 | . 9 . . 4 . 8 Peak Tracking Total 5 | . 3 . . 3 . 5 Tactical Retreats 3 | . 1 . . . . 2 Traps | -11 -10 -9 -9 -8 -7 -7 ------- Run | Yrd Mat Mat Min Mat Fac DSF Traps Triggered . | . . . . . . . Indirectly . | . . . . . . . Trap Hack Attempts . | . . . . . . . Triggered . | . . . . . . . Disarmed . | . . . . . . . Reprogrammed . | . . . . . . . Reused . | . . . . . . . Traps Extracted . | . . . . . . . Installed . | . . . . . . . Triggered . | . . . . . . . Machines | -11 -10 -9 -9 -8 -7 -7 ---------- Run | Yrd Mat Mat Min Mat Fac DSF Machines Disabled . | . . . . . . . Max in Single Turn . | . . . . . . . Machines Repaired . | . . . . . . . Machines Dismantled . | . . . . . . . Machines Sabotaged . | . . . . . . . Overloaded Fab Kills . | . . . . . . . Hacking | -11 -10 -9 -9 -8 -7 -7 --------- Run | Yrd Mat Mat Min Mat Fac DSF Machines Accessed 8 | . 2 . . 5 1 . Terminals 8 | . 2 . . 5 1 . Fabricators . | . . . . . . . Repair Stations . | . . . . . . . Recycling Units . | . . . . . . . Scanalyzers . | . . . . . . . Garrison Access . | . . . . . . . Total Hacks 21 | . 4 . . 15 2 . Successful 4 | . 1 . . 2 1 . Failed 17 | . 3 . . 13 1 . Catastrophic 3 | . . . . 3 . . Database Lockouts . | . . . . . . . Manual 8 | . . . . 8 . . Terminals 21 | . 4 . . 15 2 . Fabricators . | . . . . . . . Repair Stations . | . . . . . . . Recycling Units . | . . . . . . . Scanalyzers . | . . . . . . . Garrison Access . | . . . . . . . Terminal Hacks 4 | . 1 . . 2 1 . Open DSF 1 | . . . . . 1 . Terminal Index 1 | . . . . 1 . . Unreport Threat 1 | . . . . 1 . . Zone Layout 1 | . 1 . . . . . Fabricator Hacks . | . . . . . . . Repair Station Hacks . | . . . . . . . Recycling Unit Hacks . | . . . . . . . Scanalyzer . | . . . . . . . Garrison Access Hacks . | . . . . . . . Unauthorized Hacks . | . . . . . . . Terminals . | . . . . . . . Fabricators . | . . . . . . . Repair Stations . | . . . . . . . Recycling Units . | . . . . . . . Scanalyzers . | . . . . . . . Garrison Access . | . . . . . . . Data Cores Recovered . | . . . . . . . Used . | . . . . . . . Hacking Detections 6 | . 1 . . 5 . . Full Trace Events 4 | . 1 . . 3 . . Feedback Events . | . . . . . . . Feedback Blocked . | . . . . . . . Robot Schematics Acquired . | . . . . . . . Robots Built . | . . . . . . . Authchips . | . . . . . . . Time . | . . . . . . . Total Robot Build Rating . | . . . . . . . Part Schematics Acquired . | . . . . . . . Parts Built . | . . . . . . . Authchips . | . . . . . . . Time . | . . . . . . . Total Part Build Rating . | . . . . . . . Parts Repaired . | . . . . . . . Time . | . . . . . . . Parts Recycled . | . . . . . . . Recycled Matter . | . . . . . . . Retrieved Matter . | . . . . . . . Retrieved Components . | . . . . . . . Parts Scanalyzed . | . . . . . . . Part Schematics Acquired . | . . . . . . . Parts Damaged . | . . . . . . . Bothacking | -11 -10 -9 -9 -8 -7 -7 ------------ Run | Yrd Mat Mat Min Mat Fac DSF Used RIF Installer . | . . . . . . . Robots Hacked . | . . . . . . . Non-combat . | . . . . . . . Combat . | . . . . . . . Robot Hacks Applied . | . . . . . . . Relay Couplers Released . | . . . . . . . Fabnet Peak Effective % . | . . . . . . . Robots Rewired . | . . . . . . . Allies Hacked . | . . . . . . . Hacks Repelled . | . . . . . . . Allies | -11 -10 -9 -9 -8 -7 -7 -------- Run | Yrd Mat Mat Min Mat Fac DSF Total Allies . | . . . . . . . Largest Group . | . . . . . . . Highest-Rated Group . | . . . . . . . Highest-Rated Ally . | . . . . . . . Total Orders . | . . . . . . . Ally Attacks . | . . . . . . . Total Damage . | . . . . . . . Kills . | . . . . . . . Allies Corrupted . | . . . . . . . Allies Melted . | . . . . . . . Intel | -11 -10 -9 -9 -8 -7 -7 ------- Run | Yrd Mat Mat Min Mat Fac DSF Robot Analysis Total . | . . . . . . . Derelict Logs Recovered . | . . . . . . . Drone Launches . | . . . . . . . Drone Recoveries . | . . . . . . . Exploration | -11 -10 -9 -9 -8 -7 -7 ------------- Run | Yrd Mat Mat Min Mat Fac DSF Turns Passed 1444 | 45 272 78 23 755 12 259 Spaces Moved 663 | 34 115 59 20 340 6 89 Core 9 | 8 1 . . . . . Treads 429 | . . . . 334 6 89 Legs 225 | 26 114 59 20 6 . . Wheels . | . . . . . . . Hover . | . . . . . . . Flight . | . . . . . . . Fastest Speed 50 | 50 100 120 120 120 240 160 Average Speed 162 | 103 119 120 120 173 240 231 Slowest Speed 320 | 120 120 120 120 240 240 320 Overloaded Moves . | . . . . . . . Propulsion Burnouts . | . . . . . . . Robots Hopped . | . . . . . . . Cave-ins Triggered . | . . . . . . . Exploration Rate (%) 27 | 3 26 7 11 34 . 82 Regions Visited 6 Branch Regions 1 Pre-discovered Areas . | . . . . . . . Known Exits Taken 1 | . . . . . 1 . Unknown Exits Taken 5 | 1 1 1 1 1 . . Scrap Searched . | . . . . . . . Spaces Dug 15 | . . . . 15 . . Terrain Destroyed 15 | . . . . 15 . . Melee 15 | . . . . 15 . . Projectile . | . . . . . . . AOE . | . . . . . . . Terrain Rammed . | . . . . . . . Walls Destroyed . | . . . . . . . Machines Disabled . | . . . . . . . Actions | -11 -10 -9 -9 -8 -7 -7 --------- Run | Yrd Mat Mat Min Mat Fac DSF Total 893 | 41 198 66 19 435 5 129 Wait 48 | . 30 . . 5 . 13 Move 657 | 33 114 58 19 339 5 89 Hop . | . . . . . . . Pick Up 33 | 2 9 4 . 12 . 6 Fast Attach 26 | 6 2 . . 11 . 7 Attach 13 | . 1 4 . . . 8 Detach 5 | . 3 . . 1 . 1 Swap 9 | . 3 . . 6 . . Drop 18 | . 7 . . 11 . . Fire 52 | . 22 . . 25 . 5 Melee 32 | . 7 . . 25 . . Ram . | . . . . . . . Kick . | . . . . . . . Crush . | . . . . . . . Escape Stasis . | . . . . . . . Rewire . | . . . . . . . Trap . | . . . . . . . Miscellaneous . | . . . . . . . Route ------- -11/Scrapyard -10/Materials -9/Materials -9/Mines -8/Materials -7/Factory -7/DSF (discovered 1 exit: [*Fac]) History --------- Turn | Location | Event 4 | -11/Scrapyard | Discovered new exit (range 15) 46 | -11/Scrapyard | Entered Materials 190 | -10/Materials | Core integrity fell below 50% 301 | -10/Materials | Discovered new exit (range 15) 305 | -10/Materials | Build established: Mutant 318 | -10/Materials | Entered another Materials area 318 | -9/Materials | Evolved 2 slots: Propulsion x2 390 | -9/Materials | Discovered new exit (range 6) 396 | -9/Materials | Entered Mines 407 | -9/Mines | Discovered new exit (range 11) 419 | -9/Mines | Entered Materials 419 | -8/Materials | Evolved 2 slots: Utility x2 951 | -8/Materials | Discovered new exit (range 16) 1012 | -8/Materials | Met 7R-MNS 1174 | -8/Materials | Entered Factory 1174 | -7/Factory | Evolved 2 slots: Utility x2 1175 | -7/Factory | Caught up to 7R-MNS 1186 | -7/Factory | Identified exit to DSF 1186 | -7/Factory | Entered DSF 1229 | -7/DSF | Additional patrols routed to DSF 1366 | -7/DSF | Core integrity fell below 50% 1416 | -7/DSF | Core integrity fell below 20% 1418 | -7/DSF | Discovered new exit (range 16) 1445 | -7/DSF | Destroyed by H-55 Commando with Assault Rifle Last Messages --------------- payload. 01418_ H-55 Commando unfolds itself. 01418_ Slug penetrates Wall. 01418_ Penetrated by Slug. 01422_ Imp. Targeting Computer destroyed. 01423_ Penetrated by Slug. 01424_ Slug penetrates Wall. 01428_ Med. Treads destroyed. 01430_ Slug penetrates P-60 Hacker. 01430_ Penetrated by Slug. 01430_ Med. Treads destroyed. 01433_ Slug penetrates Wall. 01433_ Penetrated by Slug. 01433_ P-60 Hacker destroyed. 01436_ Slug penetrates Wall. 01436_ Lrg. Matter Pod destroyed. 01439_ Slug penetrates Wall. 01440_ Penetrated by Slug. 01444_ Slug penetrates Wall. 01445_ Penetrated by Slug. Map ----- +----------------------------------------------------+ | | | | | | | | | | | | | | | | | | | | | | | | | | | ???????????????????????????????????? | | ???????????????????????????????????? | | ???????????????????????????????????? | | ???????????????????????????????????? | | ????????????????????????"??????????? | | ???????????????????????#"??????????? | | ??????????????????????##"####??????? | | ??????????????????###?#"""""#??????? | | ??????????????????# ##"""""#??????? | | ??????????????????? <""##"????? | | ???????? ????????? """"?????? | | ????????# ??????????# ""???????? | | ???????## ???????????#h@#????????? | | ??????? ?????????###% ##???????? | | ???????? ?????????# !#???????? | | ???????? ?????????# !#???????? | | ??????### #????????### ##???????? | | ??????#!! !????????# #???????? | | ??????#!! !????????# #???????? | | ???????!! !????????# #???????? | | #####?#?# #?########## ###??????? | | ==#!!!### ###!!!# ##h #??????? | | ==#!!!## !%##!!!# ##%x #??????? | | ! != #??????? | | " #??????? | | "%" #??????? | | !!#!!!## " ## ! # ## **#??????? | | ??#????## !!### !!# ## **#??????? | | ??????###!!%#################??????? | | ??????#!! ![[#????????????????????? | | ??????#!! [ ##???????????????????? | | ??????#!! %[[%#???????????????????? | | ??????### "%# #??????????????????? | | ??????# %## #?????????????????? | | ??????# #?# #????????????????? | | ####### #??##????????????????? | | #[[[### %###????????????????????? | +----------------------------------------------------+ Best States ------------- Heat Dissipation 34 Energy Generation 14 Energy Capacity 275 Matter Stores 450 Matter Capacity 450 Sight Range 16 Terrain Scan Density 10 Additional Mass Support 9 Armor Coverage 600 Core Shielding 20 Evasion (%) 55 Targeting Accuracy 12 Recoil Reduction 4 Defensive Hacking 10 Authchip Count 3 Item Schematics ----------------- None Robot Schematics ------------------ None Fabricated ------------ Nothing Alien Tech Used ----------------- None Achievements -------------- None Challenges ------------ None Game ------ Seed GunAnalysisTreads Manual? 0 Play Time 00:18:38 Cumulative 46.4 hours Start 2024.07.21 @ 14:06:28 End 2024.07.21 @ 14:24:45 Sessions 1 Manual Loads 0 Difficulty Rogue Special Mode None Game No. 52 Rogue 8 Adventurer 44 Explorer 0 Win Type - Total 1 Types 0/0/1/0/0/0/0/0/0 Lore% 17 Gallery% 48 Achievement% 32 Wizard Run 0 Options --------- Layout 1 ASCII 0 Keyboard 1 Movement Arrows Keybinds 0 Fullscreen 1 Font 24/Smallcaps Map View 50x35 Zoom Use 0% Tactical HUD 1 Map Filters NONE Filters NONE Steam 1 RUN: 6efcfdb2-f07d-4539-ad59-be2852d94025